bitfinex-derivatives/quotes_ETHF0:USTF0_20260119
["timestamp","ask_amount","ask_price","bid_price","bid_amount"]
[1768863627445,3.57704934,3191.8,3190.8,8.06294084]
[1768863627647,0.98587338,3191.7,3190.8,8.06294084]
[1768863627847,3.57704934,3191.8,3190.8,8.06294084]
[1768863628050,0.9858739,3191.7,3190.8,8.06294084]
[1768863628244,3.57704934,3191.8,3190.8,8.06294084]
[1768863628440,0.98619823,3191.7,3190.9,8.055]
[1768863628748,3.57704934,3191.8,3190.9,8.055]
[1768863628950,0.98613796,3191.7,3190.9,8.055]
[1768863629246,3.57704934,3192.2,3190.9,8.055]
[1768863629438,0.76243733,3192.7,3190.9,8.055]
[1768863629640,0.15981294,3192.9,3191.0,3.38778257]
[1768863630645,0.44711596,3192.8,3191.0,3.38778257]
[1768863630847,0.15981294,3192.9,3191.0,3.38778257]
[1768863631051,0.44712272,3192.8,3191.0,3.38778257]
[1768863631352,0.44719903,3192.7,3191.0,3.38778257]
[1768863631543,0.15981294,3192.9,3191.0,3.38778257]
[1768863632250,0.15981294,3192.9,3191.2,3.38778257]
[1768863632449,0.15981294,3192.9,3191.3,6.52278257]
[1768863633040,0.15981294,3192.9,3191.4,3.135]
[1768863633237,0.44712151,3192.8,3191.4,3.135]
[1768863633437,0.15981294,3192.9,3191.4,3.135]
[1768863633641,0.44720331,3192.8,3191.4,3.135]
[1768863633850,0.15981294,3192.9,3191.4,3.135]
[1768863634148,4.02424545,3192.8,3190.8,3.39172341]
[1768863634346,3.57704934,3192.6,3190.9,3.135]
[1768863635555,0.44748257,3192.5,3190.9,3.135]
[1768863635755,3.57704934,3192.6,3191.0,3.38778257]
[1768863636153,0.15981294,3192.9,3191.0,3.38778257]
[1768863636357,0.44748229,3192.8,3191.0,3.38778257]
[1768863636556,0.44748229,3192.7,3191.0,3.38778257]
[1768863636755,0.44748229,3192.6,3191.0,3.38778257]
[1768863636954,0.15981294,3192.9,3191.0,3.38778257]
[1768863637151,0.44763139,3192.8,3191.0,3.38778257]
[1768863637354,0.44763139,3192.7,3191.0,3.38778257]
[1768863637659,0.15981294,3192.9,3191.0,3.38778257]
[1768863637958,0.44789082,3192.8,3191.0,3.38778257]
[1768863638154,0.44789082,3192.7,3191.0,3.38778257]
[1768863638467,2.22736934,3193.9,3191.6,3.54454257]
[1768863638757,0.15663,3194.3,3191.9,3.54452257]
[1768863639459,0.15986945,3194.3,3191.9,3.54452257]
[1768863640057,0.00323945,3194.3,3192.3,6.52278257]
[1768863640352,1.48557824,3195.5,3192.7,3.54448257]
[1768863640550,5.21919758,3195.5,3192.9,3.38778257]
[1768863641148,1.48557824,3195.5,3193.3,3.54445257]
[1768863641454,0.94634668,3195.4,3193.3,3.547196]
[1768863641655,0.94634668,3195.3,3193.3,3.547196]
[1768863641859,1.48911546,3195.5,3193.3,3.547196]
[1768863642058,1.48911546,3195.5,3193.5,3.34217088]
[1768863643362,1.48911546,3195.5,3193.4,0.15667]
[1768863643363,1.48911546,3195.5,3193.7,3.34217088]
[1768863643577,1.48911546,3195.5,3194.1,3.34217088]
[1768863643858,0.1565,3196.9,3194.3,3.49880088]
[1768863644064,0.94414994,3196.8,3194.3,3.49880088]
[1768863644256,0.1565,3196.9,3194.3,3.49880088]
[1768863644458,0.94246582,3196.8,3194.3,3.49880088]
[1768863644659,3.55436394,3196.7,3194.4,8.23417088]
[1768863644861,3.55436394,3196.6,3194.5,3.34217088]
[1768863645365,3.55436394,3196.6,3194.7,3.34217088]
[1768863646160,0.00321086,3196.8,3194.7,3.34217088]
[1768863647562,0.00321086,3196.8,3194.9,3.49876088]
[1768863647868,0.00321086,3196.8,3195.2,0.15658]
[1768863648168,0.00321086,3196.8,3195.4,3.34217088]
[1768863648368,3.71080394,3198.2,3195.7,3.34217088]
[1768863648665,3.71080394,3198.2,3195.9,3.34217088]
[1768863648866,3.55436394,3198.2,3196.1,3.34217088]
[1768863649261,3.55657967,3198.2,3196.2,3.34217088]
[1768863649558,0.00221573,3198.2,3196.4,3.34217088]
[1768863649759,0.00221573,3198.2,3196.4,3.49869088]
[1768863649964,0.00221573,3198.2,3196.4,3.34217088]
[1768863650469,0.00221573,3198.2,3196.6,3.34217088]
[1768863651361,0.00221573,3198.2,3196.3,3.132]
[1768863651362,3.55657967,3198.2,3196.3,3.132]
[1768863652471,3.71301967,3198.2,3196.3,3.132]
[1768863653369,5.29254566,3199.8,3197.6,3.38812059]
[1768863653560,3.64010591,3199.5,3197.7,3.132]
[1768863653869,3.48373591,3199.3,3197.6,3.132]
[1768863654166,0.2451388,3200.3,3197.1,0.15649]
[1768863654167,3.48373591,3199.1,3197.1,0.15649]
[1768863654372,3.64291207,3199.1,3197.1,0.15649]
[1768863654567,3.64291207,3199.1,3197.0,3.38812059]
[1768863656667,3.64291207,3199.1,3197.0,3.54461059]
[1768863657272,0.15917616,3199.1,3197.0,3.54461059]
[1768863657671,0.00278616,3199.1,3197.0,3.54461059]
[1768863658672,0.00278616,3199.1,3197.2,3.54460059]
[1768863658874,0.00278616,3199.1,3197.4,3.38812059]
[1768863659172,0.00278616,3199.1,3197.4,3.54459059]
[1768863660574,0.00278616,3199.1,3197.6,3.38812059]
[1768863660766,0.00278616,3199.1,3197.8,3.38812059]
[1768863661865,0.00278616,3199.1,3197.0,3.38812059]
[1768863661866,3.48652207,3199.1,3197.0,3.38812059]
[1768863662074,0.15642,3198.5,3196.5,6.51812059]
[1768863662371,0.15646,3197.7,3196.1,0.00355461]
[1768863663364,3.48373591,3198.1,3196.1,3.3916752]
[1768863663773,0.15643,3198.4,3196.1,3.3916752]
[1768863663972,3.64016591,3198.4,3196.1,3.3916752]
[1768863664279,3.64016591,3198.4,3196.2,3.13]
[1768863664967,3.64016591,3198.3,3196.1,3.3916752]
[1768863665178,3.64016591,3198.3,3196.1,6.5216752]
[1768863666270,0.93498755,3198.2,3196.1,6.5216752]
[1768863666567,3.64016591,3198.3,3196.1,6.5216752]
[1768863666768,0.93524245,3198.2,3196.1,6.5216752]
[1768863666975,3.64016591,3198.3,3196.2,1.87970042]
[1768863667174,0.93524333,3198.2,3196.2,1.87970042]
[1768863667373,0.93524333,3198.1,3196.2,1.87970042]
[1768863667675,0.93524333,3198.0,3196.2,1.87970042]
[1768863667876,3.64016591,3198.3,3196.2,1.87970042]
[1768863668072,0.93699785,3198.2,3196.1,6.5216752]
[1768863668267,2.03268503,3198.2,3196.2,1.87970042]
[1768863668466,5.51642094,3198.2,3196.2,1.87970042]
[1768863668768,0.93699785,3198.1,3196.2,1.87970042]
[1768863668974,0.93699785,3198.1,3196.2,5.26782101]
[1768863669171,3.64020591,3197.5,3196.1,0.00355461]
[1768863669473,3.64021591,3197.3,3196.1,0.00355461]
[1768863669670,0.94043532,3197.2,3196.1,0.00355461]
[1768863669877,0.94043532,3197.1,3196.1,0.00355461]
[1768863670074,3.64021591,3197.3,3196.1,0.00355461]
[1768863670278,0.94040873,3197.2,3196.1,0.00355461]
[1768863670574,3.64021591,3197.3,3196.1,0.00355461]
[1768863670575,0.94040873,3197.1,3196.1,0.00355461]
[1768863670773,0.94040873,3197.0,3196.1,0.00355461]
[1768863670975,3.64021591,3197.3,3196.1,0.00355461]
[1768863671174,0.94158025,3197.2,3196.1,0.00355461]
[1768863671377,0.94158025,3197.1,3196.1,0.00355461]
[1768863671574,0.94158025,3197.0,3196.1,0.00355461]
[1768863671769,0.94158025,3196.9,3196.1,0.00355461]
[1768863671969,4.73590309,3197.3,3196.1,0.00355461]
[1768863672174,0.94217728,3197.2,3196.1,0.00355461]
[1768863672370,2.03786446,3197.2,3196.1,0.00355461]
[1768863673481,2.48105636,3197.1,3196.1,0.00355461]
[1768863673683,0.94217728,3197.0,3196.1,0.00355461]
[1768863673882,0.94217728,3196.9,3196.1,0.00355461]
[1768863674082,0.94217728,3196.8,3196.1,0.00355461]
[1768863674381,0.94217728,3196.7,3196.1,0.00355461]
[1768863678287,1.09568718,3197.5,3196.3,3.38812059]
[1768863678486,1.09568718,3197.6,3196.3,3.38812059]
[1768863679487,0.00363501,3197.6,3196.1,0.00355461]
[1768863679688,1.53408596,3197.5,3196.1,0.00355461]
[1768863679989,1.09568718,3197.5,3196.1,0.00355461]
[1768863682499,1.09568718,3197.5,3196.1,3.3916752]
[1768863683299,1.09932219,3197.6,3196.1,3.3916752]
[1768863684704,1.09932219,3197.6,3196.1,3.5482152]
[1768863686301,1.09568718,3197.5,3196.1,3.5482152]
[1768863691407,1.52617464,3197.4,3196.1,3.5482152]
[1768863691606,1.36734354,3197.3,3196.1,3.5482152]
[1768863691799,0.93685608,3197.2,3196.1,3.5482152]
[1768863692105,0.93685608,3197.1,3196.1,3.5482152]
[1768863692299,0.93685608,3197.0,3196.1,3.5482152]
[1768863692603,1.09568718,3197.4,3196.1,3.5482152]
[1768863692805,0.42836409,3197.3,3196.1,3.5482152]
[1768863693006,0.93524575,3197.2,3196.1,3.5482152]
[1768863693207,0.93524575,3197.1,3196.1,0.00355461]
[1768863693411,0.93524575,3197.0,3196.1,0.00355461]
[1768863693713,1.09568718,3197.0,3195.6,3.66840094]
[1768863694001,0.42787094,3196.9,3195.6,3.66840094]
[1768863694201,1.09568718,3197.0,3195.6,3.66840094]
[1768863694202,0.93524575,3196.8,3195.6,3.66840094]
[1768863694397,0.93524575,3196.7,3195.6,3.66840094]
[1768863694605,0.93524575,3196.6,3195.6,3.67172164]
[1768863694802,1.09568718,3197.0,3195.6,3.67172164]
[1768863695001,0.42786241,3196.9,3195.6,3.67172164]
[1768863695197,0.93764947,3196.8,3195.6,3.67172164]
[1768863695404,0.93764947,3196.7,3195.6,3.67172164]
[1768863695602,0.93764947,3196.6,3195.6,3.67172164]
[1768863695799,0.93759414,3196.5,3195.6,3.67172164]
[1768863695995,1.09568718,3196.9,3195.6,0.0033207]
[1768863696210,2.46106599,3196.8,3195.6,0.0033207]
[1768863696503,0.9375535,3196.7,3195.6,0.0033207]
[1768863696709,0.9375535,3196.6,3195.6,0.0033207]
[1768863697007,0.9375535,3196.5,3195.6,0.0033207]
[1768863697198,1.09568718,3196.9,3195.6,0.0033207]
[1768863697397,0.42777551,3196.8,3195.6,0.0033207]
[1768863697601,0.93750728,3196.7,3195.6,0.0033207]
[1768863697808,0.93750728,3196.6,3195.6,0.0033207]
[1768863698107,0.93750728,3196.5,3195.6,0.0033207]
[1768863698302,1.09568718,3196.9,3195.6,0.0033207]
[1768863698503,0.42764688,3196.8,3195.6,0.0033207]
[1768863698700,0.9359789,3196.7,3195.6,0.0033207]
[1768863698901,0.9359789,3196.6,3195.6,0.0033207]
[1768863699100,0.9359789,3196.5,3195.6,0.0033207]
[1768863699300,1.09568718,3197.0,3195.6,0.0033207]
[1768863699509,0.42741911,3196.9,3195.6,0.0033207]
[1768863699708,1.3632217,3196.8,3195.6,0.0033207]
[1768863700006,0.93580259,3196.7,3195.6,0.0033207]
[1768863700206,0.93580259,3196.6,3195.6,0.0033207]
[1768863700410,1.09568718,3197.0,3195.6,0.0033207]
[1768863700708,0.42733968,3196.9,3195.6,0.0033207]
[1768863700911,0.93562756,3196.8,3195.6,0.0033207]
[1768863701098,0.93562756,3196.7,3195.6,0.0033207]
[1768863701296,1.09568718,3197.0,3195.6,0.0033207]
[1768863701297,0.93562756,3196.6,3195.6,0.0033207]
[1768863701502,1.09568718,3197.0,3195.6,0.0033207]
[1768863701706,0.42730745,3196.9,3195.6,0.0033207]
[1768863701907,0.93555618,3196.8,3195.6,0.0033207]
[1768863702099,0.93555618,3196.7,3195.6,0.0033207]
[1768863702299,0.93555618,3196.6,3195.6,0.0033207]
[1768863702500,1.09568718,3197.0,3195.6,0.0033207]
[1768863702700,0.42727855,3196.9,3195.6,0.0033207]
[1768863703000,0.93549176,3196.8,3195.6,0.0033207]
[1768863703200,0.93549176,3196.7,3195.6,0.0033207]
[1768863703505,4.43099068,3197.1,3195.6,0.0033207]
[1768863703710,1.36276241,3197.0,3195.6,0.0033207]
[1768863703908,1.36276241,3196.9,3195.6,0.0033207]
[1768863704109,0.93548627,3196.8,3195.6,0.0033207]
[1768863704309,0.93548627,3196.7,3195.6,0.0033207]
[1768863704509,4.43099068,3197.1,3195.6,0.0033207]
[1768863704802,5.93889967,3197.0,3195.6,0.0033207]
[1768863705107,1.36263581,3196.9,3195.6,0.0033207]
[1768863705308,3.48057668,3196.7,3195.6,0.0033207]
[1768863705493,0.93539891,3196.6,3195.6,0.0033207]
[1768863705699,3.48057668,3196.7,3195.6,0.0033207]
[1768863705899,0.93533974,3196.6,3195.6,0.0033207]
[1768863706104,3.48057668,3196.7,3195.6,0.0033207]
[1768863706304,0.93533875,3196.6,3195.6,0.0033207]
[1768863706501,3.48057668,3196.7,3195.6,0.0033207]
[1768863706709,0.93796388,3196.6,3195.6,0.0033207]
[1768863706905,3.48057668,3196.7,3195.6,0.0033207]
[1768863707207,0.9379631,3196.6,3195.6,0.0033207]
[1768863707408,3.48057668,3196.7,3195.6,0.0033207]
[1768863707710,0.93785959,3196.6,3195.6,0.0033207]
[1768863707903,3.48057668,3196.7,3195.6,0.0013635]
[1768863708108,4.41843127,3196.6,3195.6,0.0013635]
[1768863708309,3.48057668,3196.6,3195.6,0.0013635]
[1768863708605,3.48057668,3196.4,3194.7,4.96161]
[1768863708901,4.41833159,3196.3,3194.7,4.96161]
[1768863709106,0.93775491,3196.2,3194.7,4.96161]
[1768863709309,3.48057668,3196.3,3194.7,4.96161]
[1768863709501,0.93737868,3196.2,3194.7,4.96528968]
[1768863709701,3.48057668,3196.3,3194.7,4.96528968]
[1768863709905,0.93738056,3196.2,3194.7,0.16028968]
[1768863710103,3.48057668,3196.3,3194.7,0.16028968]
[1768863710307,0.93738059,3196.2,3194.7,0.16028968]
[1768863710507,3.48057668,3196.3,3194.7,0.16028968]
[1768863710712,0.93716456,3196.2,3194.7,0.16028968]
[1768863710908,3.48057668,3196.3,3194.7,0.16028968]
[1768863711208,0.93716633,3196.2,3194.7,0.16028968]
[1768863711410,3.48057668,3196.3,3194.7,0.16028968]
[1768863711707,0.93696869,3196.2,3194.7,0.16028968]
[1768863711904,4.41746845,3196.1,3194.7,0.00367968]
[1768863712115,4.41747513,3196.0,3194.7,0.00367968]
[1768863712297,3.48057668,3196.0,3194.7,0.00367968]
[1768863721614,3.43176298,3195.8,3194.7,0.00367968]
[1768863724923,4.37135715,3195.7,3194.7,0.00367968]
[1768863725121,3.43176298,3195.7,3194.7,0.00367968]
[1768863725420,3.43176298,3195.7,3194.3,0.15662]
[1768863725718,3.43176298,3195.5,3193.8,3.58026737]
[1768863725920,3.43176298,3195.3,3193.7,0.15665]
[1768863726612,3.43455548,3195.3,3193.7,0.16027662]
[1768863726811,0.93908339,3195.2,3193.7,0.00362662]
[1768863727021,3.43176298,3195.1,3193.7,0.00362662]
[1768863732516,3.43176298,3193.9,3191.9,3.58026737]
[1768863732725,3.43176298,3193.7,3191.6,0.15675]
[1768863733015,3.43176298,3193.7,3191.5,3.58026737]
[1768863733016,3.58843298,3193.5,3191.0,3.58026737]
[1768863733217,3.43176298,3193.3,3191.0,3.58026737]
[1768863733522,3.43176298,3193.2,3191.4,3.58026737]
[1768863734227,3.43176298,3193.2,3191.4,3.73703737]
[1768863734430,3.43176298,3193.9,3192.1,3.58026737]
[1768863734723,3.43176298,3194.4,3192.1,3.58026737]
[1768863734923,1.36252448,3194.3,3192.2,3.58026737]
[1768863735125,0.93730238,3194.2,3192.2,3.58026737]
[1768863735425,0.93730238,3194.1,3192.2,3.58026737]
[1768863735619,0.93730238,3194.0,3192.2,3.58026737]
[1768863735819,3.43176298,3194.4,3192.2,3.58026737]
[1768863736020,4.7935078,3194.3,3192.2,3.58026737]
[1768863736222,0.93684045,3194.2,3192.2,3.58026737]
[1768863736828,4.36860343,3194.2,3192.2,3.58026737]
[1768863737028,0.93684045,3194.1,3192.2,3.58026737]
[1768863737220,3.43176298,3194.2,3192.2,3.58026737]
[1768863737423,0.93622429,3194.1,3192.2,3.58026737]
[1768863737625,0.93622429,3194.0,3192.2,3.58026737]
[1768863737819,3.43176298,3193.7,3191.5,3.73702737]
[1768863738130,3.58844298,3193.3,3191.0,3.58339096]
[1768863738320,3.43176298,3193.1,3191.0,0.00312359]
[1768863738520,3.43176298,3192.7,3191.0,0.00312359]
[1768863738826,3.43176298,3192.5,3191.0,0.00312359]
[1768863739020,3.43176298,3192.3,3191.0,0.00312359]
[1768863742825,3.43176298,3192.3,3190.2,3.133]
[1768863743837,3.43176298,3192.3,3190.2,3.13702182]
[1768863744231,3.43176298,3192.3,3190.3,3.41281164]
[1768863745627,0.15671,3192.5,3190.3,3.41281164]
[1768863746135,3.28034607,3191.9,3190.2,0.00402182]
[1768863746324,0.15676,3191.7,3190.2,0.00402182]
[1768863746631,3.28034607,3191.6,3190.2,0.00402182]
[1768863747036,3.28034607,3191.4,3190.2,0.00402182]
[1768863749242,3.28034607,3191.4,3189.6,7.9]
[1768863749740,3.28034607,3191.4,3189.5,0.15686]
[1768863750040,3.28034607,3191.4,3189.7,7.898]
[1768863750337,3.28034607,3191.4,3189.7,7.90132981]
[1768863750640,3.28034607,3191.4,3189.7,0.00332981]
[1768863750838,3.43711607,3191.4,3189.7,3.13832981]
[1768863752533,3.43711607,3191.4,3189.7,0.00332981]
[1768863754838,3.28034607,3191.2,3189.7,0.00332981]
[1768863755143,3.28034607,3191.0,3189.7,0.00332981]
[1768863755442,3.28034607,3190.8,3189.1,3.135]
[1768863755837,3.43714607,3190.8,3189.1,3.135]
[1768863756337,3.28034607,3190.6,3188.9,3.135]
[1768863756543,3.28034607,3190.6,3189.1,0.00252902]
[1768863757631,0.1568,3190.7,3189.1,0.00252902]
[1768863757835,3.28034607,3191.1,3189.1,3.41534066]
[1768863758036,0.93113473,3191.0,3189.1,3.41534066]
[1768863758238,3.28034607,3191.1,3189.1,3.41534066]
[1768863758439,0.93168683,3191.0,3189.1,3.41534066]
[1768863758739,3.28034607,3191.1,3189.1,3.41534066]
[1768863759048,3.43713607,3190.9,3189.2,3.136]
[1768863759242,3.28034607,3190.7,3189.2,3.136]
[1768863759440,3.28034607,3190.7,3189.1,0.00252902]
[1768863760640,3.28034607,3190.7,3189.1,3.41534066]
[1768863760840,0.15679,3190.9,3189.1,3.41534066]
[1768863761035,0.93313718,3190.8,3189.1,3.41534066]
[1768863761232,0.93420463,3190.7,3189.1,3.41534066]
[1768863761433,0.15679,3190.9,3189.1,3.41534066]
[1768863761740,0.93420264,3190.8,3189.1,3.41534066]
[1768863762042,0.93420264,3190.7,3189.1,3.41534066]
[1768863762238,0.93420264,3190.6,3189.1,3.41534066]
[1768863762548,3.46592264,3190.9,3189.1,3.41534066]
[1768863762748,4.40156799,3190.8,3189.1,3.41534066]
[1768863762948,0.93564535,3190.7,3189.1,3.41534066]
[1768863765634,1.09568718,3191.3,3189.5,0.15686]
[1768863765837,1.09568718,3191.7,3189.9,3.28999555]
[1768863766034,0.93712987,3191.6,3190.1,3.28999555]
[1768863766240,1.09568718,3191.6,3190.3,3.28999555]
[1768863766449,0.93712987,3191.5,3190.3,3.28999555]
[1768863766754,0.93712987,3191.4,3190.3,3.28999555]
[1768863767042,0.93712987,3191.3,3190.3,3.28999555]
[1768863767357,1.65244975,3191.9,3190.2,3.136]
[1768863767358,1.09568718,3191.9,3190.5,3.28999555]
[1768863767536,0.93953947,3191.8,3190.5,3.28999555]
[1768863767737,0.93953947,3191.7,3190.5,3.28999555]
[1768863767948,1.09568718,3192.1,3190.5,3.28999555]
[1768863768247,2.03526927,3192.0,3190.5,3.28999555]
[1768863768447,0.93958209,3191.9,3190.5,3.28999555]
[1768863768636,0.93958209,3191.8,3190.6,44.08999555]
[1768863768834,0.93958209,3191.7,3190.7,3.28999555]
[1768863769037,0.93958209,3191.6,3190.7,3.28999555]
[1768863769233,1.09568718,3192.0,3190.7,3.28999555]
[1768863769752,0.93987594,3191.9,3190.7,3.28999555]
[1768863770043,0.93987594,3191.8,3190.7,3.28999555]
[1768863770247,3.46592264,3193.9,3190.7,3.28999555]
[1768863770446,3.46592264,3193.9,3191.7,2.04011365]
[1768863770654,3.46592264,3193.9,3191.8,4.758]
[1768863771145,3.46592264,3193.9,3191.9,0.15674]
[1768863771346,3.46879336,3193.9,3192.0,0.15674]
[1768863771941,3.46879336,3193.9,3191.9,0.00319738]
[1768863772338,3.46592264,3192.9,3190.6,40.8]
[1768863773242,0.00287072,3193.9,3191.5,0.15676]
[1768863773554,3.31552604,3193.8,3191.5,4.755]
[1768863774056,3.31552604,3193.8,3191.8,0.15675]
[1768863774249,3.31552604,3193.2,3191.2,0.15678]
[1768863774551,3.31552604,3193.2,3190.6,3.13747362]
[1768863774754,3.31552604,3193.2,3190.7,40.8]
[1768863775049,3.31552604,3193.1,3190.7,40.9568]
[1768863775245,3.31552604,3192.8,3190.6,0.00247362]
[1768863775643,3.31552604,3192.7,3190.6,40.80247362]
[1768863776652,3.31552604,3192.7,3190.9,0.15679]
[1768863777349,3.31552604,3192.7,3190.6,40.80247362]
[1768863779752,0.15669,3193.1,3190.6,40.80247362]
[1768863779753,3.135,3193.1,3191.0,3.37243853]
[1768863779953,3.135,3193.1,3191.1,3.52921853]
[1768863780244,3.135,3193.1,3191.1,0.15678]
[1768863780943,1.09952732,3193.0,3190.6,40.80247362]
[1768863781148,1.09952732,3192.6,3190.6,0.00247362]
[1768863781345,0.15673,3192.2,3190.6,0.00247362]
[1768863781549,1.25625732,3192.2,3190.6,0.00247362]
[1768863781846,3.31552604,3191.4,3190.6,0.00247362]
[1768863782055,3.31552604,3191.4,3189.2,1.88336365]
[1768863782056,3.31552604,3191.3,3189.2,0.15687]
[1768863783045,3.31552604,3191.3,3189.2,0.16054964]
[1768863783445,3.31552604,3191.3,3189.4,0.15687]
[1768863783644,0.15672,3192.4,3190.1,1.88336365]
[1768863783846,3.135,3192.6,3189.6,3.44225177]
[1768863784051,0.15675,3191.8,3189.2,0.16054964]
[1768863784252,0.15675,3191.8,3189.2,3.60280141]
[1768863784453,1.09952732,3191.7,3189.2,3.60280141]
[1768863784650,0.15675,3191.7,3189.2,3.60280141]
[1768863784955,1.09952732,3191.4,3189.2,0.16054964]
[1768863785258,4.23452732,3191.4,3189.2,0.16054964]
[1768863785556,3.31552604,3191.1,3189.2,0.16054964]
[1768863786040,4.41505336,3191.1,3189.2,0.16054964]
[1768863786950,1.09952732,3190.7,3189.2,0.00367964]
[1768863787144,3.31552604,3190.5,3189.2,0.00367964]
[1768863787346,3.31552604,3190.4,3189.2,0.00367964]
[1768863787553,1.09952732,3190.0,3189.2,0.00367964]
[1768863787749,1.09952732,3189.9,3189.2,0.00367964]
[1768863787956,3.31552604,3190.9,3189.2,0.00367964]
[1768863788254,1.09952732,3191.3,3189.3,0.15687]
[1768863788454,3.31552604,3190.5,3189.2,0.00367964]
[1768863788945,1.09952732,3190.2,3189.2,0.00367964]
[1768863789346,1.09952732,3190.1,3189.2,0.00367964]
[1768863789545,3.47231604,3191.0,3189.2,0.00367964]
[1768863789747,1.09952732,3190.8,3189.2,0.00367964]
[1768863790246,1.09952732,3190.7,3189.2,0.00367964]
[1768863790442,1.09952732,3190.8,3189.2,0.00367964]
[1768863790642,3.31552604,3191.0,3189.3,0.15687]
[1768863790847,3.31552604,3191.5,3189.6,1.88746158]
[1768863791042,4.41505336,3191.5,3189.6,1.88746158]
[1768863791259,1.09952732,3191.3,3189.6,1.88746158]
[1768863791446,3.31552604,3191.5,3189.6,1.88746158]
[1768863791648,1.09952732,3191.3,3189.6,1.88746158]
[1768863791856,3.31552604,3190.6,3189.2,0.00367964]
[1768863792151,3.31552604,3190.3,3189.2,0.00367964]
[1768863792355,1.09952732,3190.0,3189.2,0.00367964]
[1768863792559,1.09952732,3189.9,3189.2,0.00367964]
[1768863792948,1.09952732,3189.7,3189.2,0.00367964]
[1768863793148,1.09952732,3189.9,3188.3,45.55]
[1768863793348,3.31552604,3190.3,3188.3,45.55]
[1768863793555,3.31552604,3190.3,3188.3,40.8]
[1768863793751,3.31552604,3190.3,3188.4,4.75]
[1768863794064,3.31552604,3191.1,3188.7,5.32971335]
[1768863794358,1.09952732,3190.9,3188.7,5.33301687]
[1768863794756,1.09952732,3190.8,3188.7,5.33301687]
[1768863794948,1.09952732,3190.9,3188.7,5.48991687]
[1768863795357,1.09952732,3190.8,3188.7,5.48991687]
[1768863795653,3.31552604,3190.8,3188.7,5.48991687]
[1768863795848,3.31552604,3190.7,3188.7,5.48991687]
[1768863796347,3.31552604,3190.7,3188.8,4.749]
[1768863796857,4.41505336,3190.7,3188.8,4.749]
[1768863797364,1.09952732,3190.5,3188.7,3.60245529]
[1768863797656,3.31552604,3190.6,3188.7,3.60245529]
[1768863797852,3.31552604,3190.6,3189.0,1.88746158]
[1768863798357,1.09952732,3190.5,3189.0,1.88746158]
[1768863798562,3.31552604,3190.6,3189.0,1.88746158]
[1768863799258,1.09952732,3190.5,3189.0,1.88746158]
[1768863799651,1.09952732,3190.4,3189.0,1.88746158]
[1768863799851,1.09952732,3190.5,3189.0,1.88746158]
[1768863800354,1.09952732,3190.4,3189.0,1.88746158]
[1768863800556,3.31552604,3190.0,3188.7,0.00330352]
[1768863800946,1.09952732,3189.6,3188.7,0.00330352]
[1768863801151,1.10313544,3191.3,3188.7,0.00330352]
[1768863801152,1.09952732,3189.9,3188.7,0.00330352]
[1768863801353,4.41505336,3190.6,3188.7,0.00330352]
[1768863801660,1.09952732,3190.3,3188.7,0.00330352]
[1768863801859,1.09952732,3190.2,3188.7,0.00330352]
[1768863802253,1.09952732,3189.9,3188.7,0.00330352]
[1768863802455,3.31552604,3190.2,3188.7,0.00330352]
[1768863802752,1.09952732,3189.7,3188.7,0.00330352]
[1768863803057,1.09952732,3189.6,3188.7,0.00330352]
[1768863803264,1.09952732,3189.7,3188.7,0.00330352]
[1768863803767,3.34804669,3189.7,3188.7,0.00330352]
[1768863803969,1.09952732,3189.1,3188.7,0.00330352]
[1768863804264,1.09952732,3189.1,3187.7,1.88746158]
[1768863804265,1.09952732,3188.8,3187.4,8.18786703]
[1768863804565,3.34804669,3189.9,3187.8,5.33432861]
[1768863804760,3.34804669,3189.9,3187.9,3.60380703]
[1768863805058,3.34804669,3189.7,3187.9,0.00390643]
[1768863805258,4.44757401,3189.3,3187.9,0.00390643]
[1768863805567,4.44757401,3189.1,3187.9,0.00390643]
[1768863805861,3.34804669,3189.7,3187.9,0.00390643]
[1768863806062,1.09952732,3189.6,3187.9,0.00390643]
[1768863806257,1.09952732,3189.4,3187.9,0.00390643]
[1768863806452,3.34804669,3188.0,3185.8,1.88746158]
[1768863806655,3.34804669,3188.0,3186.3,1.88746158]
[1768863806861,1.09952732,3187.9,3186.3,1.88746158]
[1768863807048,1.09952732,3187.9,3186.3,5.33432861]
[1768863807449,1.09952732,3187.9,3186.3,5.33765725]
[1768863807962,3.34804669,3188.6,3186.3,5.33765725]
[1768863808164,1.09952732,3188.2,3186.4,3.44686703]
[1768863808357,1.09952732,3188.3,3186.5,7.875]
[1768863808658,3.34804669,3188.4,3186.6,4.738]
[1768863808872,4.44757401,3188.4,3186.6,7.875]
[1768863809160,1.09952732,3188.1,3186.6,7.875]
[1768863809760,1.09952732,3188.0,3186.7,4.737]
[1768863810063,3.34804669,3188.4,3186.4,3.44686703]
[1768863810358,1.09952732,3188.1,3186.4,3.44686703]
[1768863810564,1.09952732,3188.2,3186.5,5.901]
[1768863810958,1.09952732,3188.0,3186.4,3.44686703]
[1768863811158,1.09952732,3188.1,3186.4,3.44686703]
[1768863811763,1.09952732,3188.0,3186.4,3.44686703]
[1768863811958,3.34804669,3188.4,3186.6,3.44686703]
[1768863812164,1.09952732,3188.3,3186.6,3.44686703]
[1768863812556,1.09952732,3188.2,3186.6,3.44686703]
[1768863813058,1.10313544,3189.5,3186.3,1.89079022]
[1768863813059,3.34804669,3187.7,3186.3,0.00332864]
[1768863813559,1.09952732,3187.4,3186.3,0.00332864]
[1768863813761,0.00365126,3187.4,3186.4,7.869]
[1768863813960,0.00365126,3187.4,3186.3,0.00332864]
[1768863813961,1.09952732,3187.2,3186.3,0.00332864]
[1768863814265,1.09952732,3186.4,3184.1,3.44686703]
[1768863814453,3.34804669,3187.3,3185.3,3.44686703]
[1768863814658,3.34804669,3187.3,3185.4,6.58486703]
[1768863814967,1.09952732,3187.1,3185.5,7.868]
[1768863815156,3.34804669,3187.0,3185.6,3.138]
[1768863815466,0.00365126,3187.4,3185.5,3.45031158]
[1768863815663,0.00365126,3187.4,3185.7,7.841]
[1768863815869,1.09952732,3187.2,3185.7,7.841]
[1768863816059,1.09952732,3187.3,3185.7,11.28786703]
[1768863816366,1.09952732,3187.2,3185.8,7.866]
[1768863816565,1.09952732,3187.3,3185.9,7.866]
[1768863816767,1.09952732,3187.3,3185.5,0.00344455]
[1768863816959,1.09952732,3187.2,3185.6,7.865]
[1768863817354,3.35169795,3187.4,3185.5,0.00344455]
[1768863817670,3.34804669,3186.6,3184.8,6.58586703]
[1768863817968,3.34804669,3186.6,3184.4,2.04457158]
[1768863817969,3.34804669,3186.8,3184.4,3.60397703]
[1768863818156,3.50504669,3186.8,3184.4,3.44686703]
[1768863818358,3.34804669,3186.2,3184.5,5.786]
[1768863818562,1.09952732,3185.7,3184.5,0.00399627]
[1768863819056,3.34804669,3186.8,3184.6,3.139]
[1768863819261,3.34804669,3186.4,3184.5,0.00399627]
[1768863819462,3.34804669,3186.2,3184.5,0.00399627]
[1768863819867,1.09952732,3185.7,3184.5,0.00399627]